fUSD/lending_fUSD_20250112
["ID","MTS","AMOUNT","RATE_DAILY","PERIOD"]
[348684204,1736715043205,-508.82,9.999e-05,2]
[348684205,1736715043214,-500.0,9.999e-05,2]
[348684206,1736715043222,-716.15,9.999e-05,2]
[348684207,1736715043231,-500.0,9.999e-05,2]
[348684208,1736715043240,-500.0,9.999e-05,2]
[348684209,1736715043249,-536.0,9.999e-05,2]
[348684210,1736715043258,-500.0,9.999e-05,2]
[348684211,1736715043267,-500.0,9.999e-05,2]
[348684212,1736715043276,-500.0,9.999e-05,2]
[348684213,1736715043285,-500.0,9.999e-05,2]
[348684214,1736715043294,-509.76,9.999e-05,2]
[348684215,1736715043303,-500.0,9.999e-05,2]
[348684216,1736715043312,-500.0,9.999e-05,2]
[348684217,1736715043321,-500.0,9.999e-05,2]
[348684218,1736715043330,-500.0,9.999e-05,2]
[348684219,1736715043339,-500.0,9.999e-05,2]
[348684220,1736715043348,-500.0,9.999e-05,2]
[348684221,1736715043357,-500.0,9.999e-05,2]
[348684222,1736715043366,-500.0,9.999e-05,2]
[348684223,1736715043374,-500.0,9.999e-05,2]
[348684224,1736715043383,-500.0,9.999e-05,2]
[348684225,1736715043392,-543.46,9.999e-05,2]
[348684226,1736715043401,-500.0,9.999e-05,2]
[348684227,1736715043410,-500.0,9.999e-05,2]
[348684228,1736715043419,-500.0,9.999e-05,2]
[348684229,1736715043427,-500.0,9.999e-05,2]
[348684230,1736715043436,-500.0,9.999e-05,2]
[348684231,1736715043445,-500.0,9.999e-05,2]
[348684232,1736715043455,-500.0,9.999e-05,2]
[348684233,1736715043464,-725.8,9.999e-05,2]
[348684234,1736715043473,-662.83,9.999e-05,2]
[348684235,1736715043482,-500.0,9.999e-05,2]
[348684236,1736715043491,-500.0,9.999e-05,2]
[348684237,1736715043501,-731.24,9.999e-05,2]
[348684238,1736715043510,-500.0,9.999e-05,2]
[348684239,1736715043522,-500.0,9.999e-05,2]
[348684240,1736715043532,-500.0,9.999e-05,2]
[348684241,1736715043543,-757.63,9.999e-05,2]
[348684242,1736715043552,-500.0,9.999e-05,2]
[348684243,1736715043561,-500.0,9.999e-05,2]
[348684244,1736715043570,-500.0,9.999e-05,2]
[348684245,1736715043579,-500.0,9.999e-05,2]
[348684246,1736715043588,-310.98337892,9.999e-05,2]
[348684247,1736715043597,-571.84,9.999e-05,2]
[348684248,1736715043606,-500.0,9.999e-05,2]
[348684249,1736715043615,-500.0,9.999e-05,2]
[348684250,1736715043625,-500.0,9.999e-05,2]
[348684251,1736715043634,-612.1,9.999e-05,2]
[348684252,1736715043643,-500.0,9.999e-05,2]
[348684253,1736715043652,-500.0,9.999e-05,2]
[348684254,1736715043660,-500.0,9.999e-05,2]
[348684255,1736715043669,-500.0,9.999e-05,2]
[348684256,1736715043679,-500.0,9.999e-05,2]
[348684257,1736715043687,-624.87,9.999e-05,2]
[348684258,1736715043696,-625.0,9.999e-05,2]
[348684259,1736715043706,-546.46,9.999e-05,2]
[348684260,1736715043715,-500.0,9.999e-05,2]
[348684261,1736715043724,-663.83,9.999e-05,2]
[348684262,1736715043733,-500.0,9.999e-05,2]
[348684263,1736715043743,-500.0,9.999e-05,2]
[348684264,1736715043752,-500.0,9.999e-05,2]
[348684265,1736715043761,-761.24,9.999e-05,2]
[348684266,1736715043770,-500.0,9.999e-05,2]
[348684267,1736715043778,-726.85,9.999e-05,2]
[348684268,1736715043787,-1059.16,9.999e-05,2]
[348684269,1736715043796,-587.34,9.999e-05,2]
[348684270,1736715043805,-500.0,9.999e-05,2]
[348684271,1736715043815,-1099.08,9.999e-05,2]
[348684272,1736715043824,-192.45,0.0001,2]
[348684273,1736715043833,-500.0,0.0001,2]
[348684274,1736715043843,-478.78700583,0.0001,2]
[348684275,1736715043852,-476.88753801,0.0001,2]
[348684276,1736715043861,-476.88753783,0.00010014,2]
[348684277,1736715043870,-527.04,0.00010073,2]
[348684278,1736715043879,-783.54,0.00010073,2]
[348684279,1736715043888,-564.52,0.00010073,2]
[348684280,1736715043898,-573.17,0.00010073,2]
[348684281,1736715043907,-500.0,0.00010073,2]
[348684282,1736715043917,-500.0,0.00010073,2]
[348684283,1736715043926,-500.0,0.00010073,2]
[348684284,1736715043935,-554.58,0.00010073,2]
[348684285,1736715043945,-543.31,0.00010073,2]
[348684286,1736715043954,-500.0,0.00010073,2]
[348684287,1736715043963,-500.0,0.00010073,2]
[348684288,1736715043972,-627.06,0.00010073,2]
[348684289,1736715043981,-500.0,0.00010073,2]
[348684290,1736715043991,-603.45,0.00010073,2]
[348684291,1736715044000,-622.72,0.00010073,2]
[348684292,1736715044009,-500.0,0.00010073,2]
[348684293,1736715044018,-500.0,0.00010073,2]
[348684294,1736715044027,-500.0,0.00010073,2]
[348684295,1736715044036,-693.7,0.00010073,2]
[348684296,1736715044046,-553.34,0.00010073,2]
[348684297,1736715044055,-620.37,0.00010073,2]
[348684298,1736715044064,-500.0,0.00010073,2]
[348684299,1736715044074,-431.62,0.00010073,2]
[348684300,1736715044083,-610.19,0.00010073,2]
[348684301,1736715044093,-584.09,0.00010073,2]
[348684302,1736715044102,-618.49935305,0.00010073,2]
[348684303,1736715044111,-500.0,0.00010073,2]
[348684304,1736715044120,-500.0,0.00010073,2]
[348684305,1736715044130,-1503.89,0.00010073,2]
[348684306,1736715044139,-500.0,0.00010073,2]
[348684307,1736715044148,-558.51,0.00010073,2]
[348684308,1736715044157,-4582.39,0.00010073,2]
[348684309,1736715044166,-500.0,0.00010073,2]
[348684310,1736715044175,-500.0,0.00010073,2]
[348684311,1736715044184,-559.89,0.00010073,2]
[348684312,1736715044193,-583.02,0.00010073,2]
[348684313,1736715044202,-613.85,0.00010073,2]
[348684314,1736715044211,-523.64,0.00010073,2]
[348684315,1736715044220,-764.78,0.00010073,2]
[348684316,1736715044229,-728.66,0.00010073,2]
[348684317,1736715044239,-500.0,0.00010073,2]
[348684318,1736715044248,-722.98,0.00010073,2]
[348684319,1736715044257,-694.33,0.00010073,2]
[348684320,1736715044266,-1360.15,0.00010073,2]
[348684321,1736715044275,-3184.78,0.00010073,2]
[348684322,1736715044284,-500.0,0.00010073,2]
[348684323,1736715044294,-1819.79,0.00010073,2]
[348684324,1736715044302,-3391.26,0.00010073,2]
[348684325,1736715044311,-2168.88,0.00010073,2]
[348684326,1736715044322,-674.53,0.00010073,2]
[348684327,1736715044331,-635.75,0.00010073,2]
[348684328,1736715044340,-1726.35,0.00010073,2]
[348684329,1736715044349,-887.47,0.00010073,2]
[348684330,1736715044359,-500.0,0.00010073,2]
[348684331,1736715044368,-632.05,0.00010073,2]
[348684332,1736715044377,-537.43,0.00010073,2]
[348684333,1736715044388,-1240.15,0.00010073,2]
[348684334,1736715044397,-500.0,0.00010073,2]
[348684335,1736715044406,-2477.84,0.00010073,2]
[348684336,1736715044414,-500.0,0.00010073,2]
[348684337,1736715044423,-674.74,0.00010073,2]
[348684338,1736715044438,-798.9,0.00010073,2]
[348684339,1736715044451,-1272.16,0.00010073,2]
[348684340,1736715044465,-500.0,0.00010073,2]
[348684341,1736715044476,-2079.21,0.00010073,2]
[348684342,1736715044486,-587.94,0.00010073,2]
[348684343,1736715044496,-1105.49,0.00010073,2]
[348684344,1736715044507,-500.0,0.00010073,2]
[348684345,1736715044520,-499.77,0.00010073,2]
[348684346,1736715044533,-671.15,0.00010073,2]
[348684347,1736715044544,-500.0,0.00010073,2]
[348684348,1736715044556,-728.37,0.00010073,2]
[348684349,1736715044567,-438.46308912,0.00010073,2]
[348684350,1736715044578,-500.0,0.00010073,2]
[348684351,1736715044589,-500.0,0.00010073,2]
[348684352,1736715044599,-954.38,0.00010073,2]
[348684353,1736715044610,-651.49,0.00010073,2]
[348684354,1736715044621,-1277.5,0.00010073,2]
[348684355,1736715044631,-500.0,0.00010073,2]
[348684356,1736715044641,-687.57,0.00010073,2]
[348684357,1736715044651,-831.18,0.00010073,2]
[348684358,1736715044661,-698.46,0.00010073,2]
[348684359,1736715044671,-603.72,0.00010073,2]
[348684360,1736715044682,-1808.23,0.00010073,2]
[348684361,1736715044694,-500.0,0.00010073,2]
[348684362,1736715044705,-566.25,0.00010073,2]
[348684363,1736715044715,-748.25,0.00010073,2]
[348684364,1736715044727,-500.0,0.00010073,2]
[348684365,1736715044738,-816.75,0.00010073,2]
[348684366,1736715044749,-6645.92035541,0.00010091,4]
[348684367,1736715044760,-476.88753783,0.00010121,2]
[348684368,1736715044772,-408.5,0.00010137,2]
[348684369,1736715044783,-156.17,0.00010137,2]
[348684370,1736715044795,-795.47,0.00010181,2]
[348684371,1736715044806,-1780.22,0.00010181,2]
[348684372,1736715044816,-906.18,0.00010181,2]
[348684373,1736715044829,-500.0,0.00010182,2]
[348684374,1736715044840,-1530.7,0.00010182,2]
[348684375,1736715044852,-1241.55,0.00010182,2]
[348684376,1736715044863,-500.0,0.0001021,2]
[348684377,1736715044874,-476.88753783,0.00010228,2]
[348684378,1736715044885,-628.21,0.00010268,2]
[348684379,1736715044897,-500.0,0.00010268,2]
[348684380,1736715044907,-500.0,0.00010268,2]
[348684381,1736715044918,-910.84,0.00010269,2]
[348684382,1736715044930,-940.9,0.0001027,2]
[348684383,1736715044942,-1374.83,0.0001027,2]
[348684384,1736715044954,-1553.64,0.0001027,2]
[348684385,1736715044966,-1466.7,0.0001027,2]
[348684386,1736715044976,-2147.19,0.0001027,2]
[348684387,1736715044987,-3988.93,0.0001027,2]
[348684388,1736715044998,-646.54,0.0001027,2]
[348684389,1736715045008,-514.83,0.00010271,2]
[348684390,1736715045018,-544.8,0.00010271,2]
[348684391,1736715045028,-500.0,0.00010271,2]
[348684392,1736715045038,-500.0,0.00010271,2]
[348684393,1736715045049,-500.0,0.00010271,2]
[348684394,1736715045062,-641.09,0.00010271,2]
[348684395,1736715045074,-406.94117626,0.00010271,2]
[348684396,1736715045084,-500.0,0.00010271,2]
[348684397,1736715045093,-500.0,0.00010271,2]
[348684398,1736715045103,-500.0,0.00010271,2]
[348684399,1736715045113,-659.63,0.00010271,2]
[348684400,1736715045122,-713.28,0.00010271,2]
[348684401,1736715045133,-1071.02,0.00010271,2]
[348684402,1736715045144,-649.1,0.00010271,2]
[348684403,1736715045156,-906.73,0.00010271,2]
[348684404,1736715045167,-756.21,0.00010271,2]
[348684405,1736715045178,-500.0,0.00010271,2]
[348684406,1736715045188,-500.0,0.00010271,2]
[348684407,1736715045198,-500.0,0.00010271,2]
[348684408,1736715045208,-765.22,0.00010271,2]
[348684409,1736715045218,-904.42,0.00010271,2]
[348684410,1736715045228,-541.43,0.00010271,2]
[348684411,1736715045238,-1696.61,0.00010271,2]
[348684412,1736715045248,-500.0,0.00010271,2]
[348684413,1736715045258,-500.0,0.00010271,2]
[348684414,1736715045268,-839.03,0.00010271,2]
[348684415,1736715045279,-1171.2,0.00010271,2]
[348684416,1736715045290,-1550.19,0.00010271,2]
[348684418,1736715045299,-522.35,0.00010271,2]
[348684419,1736715045310,-1125.7,0.00010271,2]
[348684420,1736715045320,-500.0,0.00010271,2]
[348684421,1736715045330,-762.88,0.00010271,2]
[348684422,1736715045340,-1287.27,0.00010271,2]
[348684423,1736715045351,-664.15,0.00010271,2]
[348684425,1736715045365,-3108.37,0.00010271,2]
[348684426,1736715045376,-749.7,0.00010271,2]
[348684427,1736715045387,-1349.45,0.00010271,2]
[348684428,1736715045401,-1000.0,0.00010271,2]
[348684429,1736715045411,-647.53,0.00010271,2]
[348684430,1736715045421,-1961.82,0.00010271,2]
[348684431,1736715045432,-993.36,0.00010271,2]
[348684432,1736715045442,-500.0,0.00010272,2]
[348684433,1736715045453,-571.61,0.00010272,2]
[348684434,1736715045464,-531.54,0.00010272,2]
[348684435,1736715045475,-1291.45,0.00010272,2]
[348684436,1736715045486,-3163.06,0.00010272,2]
[348684437,1736715045497,-3072.55,0.00010272,2]
[348684438,1736715045507,-500.0,0.00010272,2]
[348684439,1736715045518,-1312.57,0.00010272,2]
[348684440,1736715045528,-2350.2,0.00010272,2]
[348684441,1736715045539,-502.31,0.00010273,2]
[348684442,1736715045551,-500.0,0.00010273,2]
[348684443,1736715045563,-500.0,0.00010273,2]
[348684444,1736715045574,-500.0,0.00010273,2]
[348684445,1736715045584,-500.0,0.00010273,2]
[348684446,1736715045594,-735.7,0.00010273,2]
[348684447,1736715045604,-500.0,0.00010273,2]
[348684448,1736715045615,-500.0,0.00010273,2]
[348684449,1736715045625,-552.04,0.00010273,2]
[348684450,1736715045637,-500.0,0.00010273,2]
[348684451,1736715045647,-500.0,0.00010273,2]
[348684452,1736715045658,-500.0,0.00010273,2]
[348684453,1736715045668,-500.0,0.00010273,2]
[348684454,1736715045680,-500.0,0.00010273,2]
[348684455,1736715045690,-500.0,0.00010273,2]
[348684456,1736715045701,-508.82,0.00010273,2]
[348684457,1736715045711,-500.0,0.00010273,2]
[348684458,1736715045722,-716.15,0.00010273,2]
[348684459,1736715045733,-500.0,0.00010273,2]
[348684460,1736715045744,-500.0,0.00010273,2]
[348684461,1736715045755,-536.0,0.00010273,2]
[348684462,1736715045766,-500.0,0.00010273,2]
[348684463,1736715045776,-500.0,0.00010273,2]
[348684464,1736715045787,-500.0,0.00010273,2]
[348684466,1736715045798,-500.0,0.00010273,2]
[348684467,1736715045808,-509.76,0.00010273,2]
[348684468,1736715045819,-500.0,0.00010273,2]
[348684469,1736715045829,-500.0,0.00010273,2]
[348684470,1736715045840,-500.0,0.00010273,2]
[348684471,1736715045850,-500.0,0.00010273,2]
[348684472,1736715045861,-500.0,0.00010273,2]
[348684473,1736715045871,-500.0,0.00010273,2]
[348684474,1736715045882,-500.0,0.00010273,2]
[348684475,1736715045892,-500.0,0.00010273,2]
[348684476,1736715045903,-500.0,0.00010273,2]
[348684477,1736715045914,-543.46,0.00010273,2]
[348684478,1736715045925,-500.0,0.00010273,2]
[348684479,1736715045935,-500.0,0.00010273,2]
[348684480,1736715045947,-500.0,0.00010273,2]
[348684481,1736715045957,-500.0,0.00010273,2]
[348684482,1736715045968,-500.0,0.00010273,2]
[348684483,1736715045979,-500.0,0.00010273,2]
[348684484,1736715045990,-725.8,0.00010273,2]
[348684485,1736715046000,-662.83,0.00010273,2]
[348684486,1736715046010,-500.0,0.00010273,2]
[348684487,1736715046020,-731.24,0.00010273,2]
[348684488,1736715046031,-342.03,0.00010273,2]
[348684489,1736715046042,-500.0,0.00010273,2]
[348684490,1736715046052,-757.63,0.00010273,2]
[348684491,1736715046062,-500.0,0.00010273,2]
[348684492,1736715046072,-500.0,0.00010273,2]
[348684493,1736715046083,-500.0,0.00010273,2]
[348684494,1736715046093,-500.0,0.00010273,2]
[348684495,1736715046103,-571.84,0.00010273,2]
[348684496,1736715046114,-500.0,0.00010273,2]
[348684497,1736715046124,-500.0,0.00010273,2]
[348684498,1736715046135,-500.0,0.00010273,2]
[348684499,1736715046147,-612.1,0.00010273,2]
[348684500,1736715046158,-356.29,0.00010273,2]
[348684501,1736715046170,-500.0,0.00010273,2]
[348684502,1736715046181,-500.0,0.00010273,2]
[348684503,1736715046193,-500.0,0.00010273,2]
[348684504,1736715046205,-624.87,0.00010273,2]
[348684505,1736715046216,-625.0,0.00010273,2]
[348684506,1736715046226,-546.46,0.00010273,2]
[348684507,1736715046237,-500.0,0.00010273,2]
[348684508,1736715046247,-663.83,0.00010273,2]
[348684509,1736715046259,-500.0,0.00010273,2]
[348684510,1736715046269,-366.40323672,0.00010273,2]
[348684511,1736715046281,-500.0,0.00010273,2]
[348684512,1736715046291,-761.24,0.00010273,2]
[348684513,1736715046301,-500.0,0.00010273,2]
[348684514,1736715046312,-726.85,0.00010273,2]
[348684515,1736715046323,-1059.16,0.00010273,2]
[348684516,1736715046335,-587.34,0.00010273,2]
[348684517,1736715046346,-500.0,0.00010273,2]
[348684518,1736715046357,-1099.08,0.00010273,2]
[348684519,1736715046368,-1000.0,0.00010321,2]
[348684520,1736715046379,-476.88753783,0.00010334,2]
[348684521,1736715046391,-527.04,0.00010347,2]
[348684522,1736715046401,-783.54,0.00010347,2]
[348684523,1736715046412,-564.52,0.00010347,2]
[348684524,1736715046424,-573.17,0.00010347,2]
[348684525,1736715046435,-500.0,0.00010347,2]
[348684526,1736715046446,-500.0,0.00010347,2]
[348684527,1736715046459,-500.0,0.00010347,2]
[348684528,1736715046470,-554.58,0.00010347,2]
[348684529,1736715046481,-543.31,0.00010347,2]
[348684530,1736715046491,-500.0,0.00010347,2]
[348684531,1736715046502,-196.01901628,0.00010347,2]
[348684532,1736715046512,-627.06,0.00010347,2]
[348684533,1736715046523,-500.0,0.00010347,2]
[348684534,1736715046536,-603.45,0.00010347,2]
[348684535,1736715046548,-622.72,0.00010347,2]
[348684536,1736715046558,-500.0,0.00010347,2]
[348684537,1736715046569,-500.0,0.00010347,2]
[348684538,1736715046579,-500.0,0.00010347,2]
[348684539,1736715046590,-693.7,0.00010347,2]
[348684540,1736715046600,-553.34,0.00010347,2]
[348684541,1736715046610,-620.37,0.00010347,2]
[348684542,1736715046620,-500.0,0.00010347,2]
[348684543,1736715046630,-610.19,0.00010347,2]
[348684544,1736715046640,-584.09,0.00010347,2]
[348684545,1736715046651,-500.0,0.00010347,2]
[348684546,1736715046661,-500.0,0.00010347,2]
[348684547,1736715046672,-1503.89,0.00010347,2]
[348684548,1736715046683,-558.51,0.00010347,2]
[348684549,1736715046696,-4582.39,0.00010347,2]
[348684550,1736715046707,-500.0,0.00010347,2]
[348684551,1736715046718,-500.0,0.00010347,2]
[348684552,1736715046729,-559.89,0.00010347,2]
[348684553,1736715046739,-583.02,0.00010347,2]
[348684554,1736715046750,-613.85,0.00010347,2]
[348684555,1736715046760,-523.64,0.00010347,2]
[348684556,1736715046770,-764.78,0.00010347,2]
[348684557,1736715046782,-728.66,0.00010347,2]
[348684558,1736715046793,-722.98,0.00010347,2]
[348684559,1736715046803,-694.33,0.00010347,2]
[348684560,1736715046814,-1360.15,0.00010347,2]
[348684561,1736715046824,-3184.78,0.00010347,2]
[348684562,1736715046834,-500.0,0.00010347,2]
[348684563,1736715046844,-1819.79,0.00010347,2]
[348684564,1736715046854,-3391.26,0.00010347,2]
[348684565,1736715046865,-2168.88,0.00010347,2]
[348684566,1736715046875,-674.53,0.00010347,2]
[348684567,1736715046886,-635.75,0.00010347,2]
[348684568,1736715046896,-1726.35,0.00010347,2]
[348684569,1736715046907,-887.47,0.00010347,2]
[348684570,1736715046917,-500.0,0.00010347,2]
[348684571,1736715046927,-632.05,0.00010347,2]
[348684572,1736715046938,-537.43,0.00010347,2]
[348684573,1736715046949,-1240.15,0.00010347,2]
[348684574,1736715046959,-500.0,0.00010347,2]
[348684575,1736715046970,-2477.84,0.00010347,2]
[348684576,1736715046980,-372.85376622,0.00010347,2]
[348684577,1736715046991,-674.74,0.00010347,2]
[348684578,1736715047002,-798.9,0.00010347,2]
[348684579,1736715047013,-1272.16,0.00010347,2]
[348684580,1736715047023,-500.0,0.00010347,2]
[348684581,1736715047034,-2079.21,0.00010347,2]
[348684582,1736715047044,-587.94,0.00010347,2]
[348684583,1736715047056,-1105.49,0.00010347,2]
[348684584,1736715047066,-500.0,0.00010347,2]
[348684585,1736715047076,-671.15,0.00010347,2]
[348684586,1736715047087,-500.0,0.00010347,2]
[348684587,1736715047097,-728.37,0.00010347,2]
[348684588,1736715047108,-500.0,0.00010347,2]
[348684589,1736715047118,-500.0,0.00010347,2]
[348684590,1736715047129,-954.38,0.00010347,2]
[348684591,1736715047139,-651.49,0.00010347,2]
[348684592,1736715047150,-1277.5,0.00010347,2]
[348684593,1736715047160,-500.0,0.00010347,2]
[348684594,1736715047170,-687.57,0.00010347,2]
[348684595,1736715047181,-831.18,0.00010347,2]
[348684596,1736715047191,-698.46,0.00010347,2]
[348684597,1736715047202,-603.72,0.00010347,2]
[348684598,1736715047212,-1808.23,0.00010347,2]
[348684599,1736715047222,-566.25,0.00010347,2]
[348684600,1736715047232,-748.25,0.00010347,2]
[348684601,1736715047245,-500.0,0.00010347,2]
[348684602,1736715047255,-816.75,0.00010347,2]
[348684603,1736715047265,-345.33098382,0.00010354,2]
[348684604,1736715047275,-821.51,0.00010414,2]
[348684605,1736715047285,-476.88753783,0.00010441,2]
[348684606,1736715047295,-321.68972531,0.00010446,2]
[348684607,1736715047306,-2822.25765094,0.00010447,2]
[348684608,1736715047316,-500.0,0.00010454,2]
[348684609,1736715047326,-695.04,0.00010454,2]
[348684610,1736715047336,-663.19,0.00010454,2]
[348684611,1736715047346,-500.0,0.00010454,2]
[348684612,1736715047356,-562.93,0.00010454,2]
[348684613,1736715047366,-866.33,0.00010454,2]
[348684614,1736715047376,-1613.66,0.00010454,2]
[348684615,1736715047747,-928.32,0.00010454,2]
[348684616,1736715047766,-612.39,0.00010454,2]
[348684617,1736715047776,-2016.102532,0.00010454,2]
[348684618,1736715047785,-2671.6,0.00010454,2]
[348684619,1736715047794,-2243.725831,0.00010454,2]
[348684620,1736715047803,-737.22,0.00010454,2]
[348684621,1736715047812,-660.68,0.00010454,2]
[348684622,1736715047822,-647.43,0.00010454,2]
[348684623,1736715047833,-2877.26,0.00010454,2]
[348684624,1736715047842,-868.53,0.00010454,2]
[348684625,1736715047852,-181.151193,0.00010454,2]
[348684626,1736715047861,-500.0,0.00010454,2]
[348684627,1736715047871,-500.0,0.00010454,2]
[348684628,1736715047879,-945.26,0.00010454,2]
[348684629,1736715047890,-941.5,0.00010454,2]
[348684630,1736715047899,-1381.03,0.00010454,2]
[348684631,1736715047908,-956.86,0.00010454,2]
[348684632,1736715047918,-1738.31,0.00010454,2]
[348684633,1736715047927,-795.47,0.00010455,2]
[348684634,1736715047936,-1780.22,0.00010455,2]
[348684635,1736715047948,-906.18,0.00010455,2]
[348684636,1736715047957,-500.0,0.00010456,2]
[348684637,1736715047968,-1530.7,0.00010456,2]
[348684638,1736715047977,-1241.55,0.00010456,2]
[348684639,1736715047989,-1544.14,0.00010463,2]
[348684640,1736715047998,-437.93,0.00010463,2]
[348684641,1736715048008,-437.93,0.00010463,2]
[348684642,1736715048017,-500.0,0.00010484,2]
[348684643,1736715048026,-1000.0,0.00010524,2]
[348684644,1736715048035,-163.962,0.0001053,2]
[348684645,1736715048044,-628.21,0.00010542,2]
[348684646,1736715048053,-500.0,0.00010542,2]
[348684647,1736715048062,-500.0,0.00010542,2]
[348684648,1736715048072,-940.9,0.00010544,2]
[348684649,1736715048081,-1374.83,0.00010544,2]
[348684650,1736715048090,-1553.64,0.00010544,2]
[348684651,1736715048099,-1057.38088517,0.00010544,2]
[348684652,1736715048395,-409.31911483,0.00010544,2]
[348684653,1736715048404,-2147.19,0.00010544,2]
[348684654,1736715048414,-3988.93,0.00010544,2]
[348684655,1736715048423,-646.54,0.00010544,2]
[348684656,1736715048432,-514.83,0.00010545,2]
[348684657,1736715048441,-544.8,0.00010545,2]
[348684658,1736715048450,-500.0,0.00010545,2]
[348684659,1736715048462,-500.0,0.00010545,2]
[348684660,1736715048472,-500.0,0.00010545,2]
[348684661,1736715048480,-641.09,0.00010545,2]
[348684662,1736715048491,-500.0,0.00010545,2]
[348684663,1736715048501,-500.0,0.00010545,2]
[348684664,1736715048510,-500.0,0.00010545,2]
[348684665,1736715048519,-659.63,0.00010545,2]
[348684666,1736715048528,-713.28,0.00010545,2]
[348684667,1736715048539,-1071.02,0.00010545,2]
[348684668,1736715048549,-649.1,0.00010545,2]
[348684669,1736715048559,-906.73,0.00010545,2]
[348684670,1736715048568,-756.21,0.00010545,2]
[348684671,1736715048577,-500.0,0.00010545,2]
[348684672,1736715048587,-765.22,0.00010545,2]
[348684673,1736715048595,-541.43,0.00010545,2]
[348684674,1736715048604,-904.42,0.00010545,2]
[348684675,1736715048613,-1696.61,0.00010545,2]
[348684676,1736715048623,-500.0,0.00010545,2]
[348684677,1736715048632,-500.0,0.00010545,2]
[348684678,1736715048642,-910.84,0.00010545,2]
[348684679,1736715048651,-839.03,0.00010545,2]
[348684680,1736715048660,-1171.2,0.00010545,2]
[348684681,1736715048669,-1550.19,0.00010545,2]
[348684682,1736715048678,-522.35,0.00010545,2]
[348684683,1736715048688,-1125.7,0.00010545,2]
[348684684,1736715048697,-500.0,0.00010545,2]
[348684685,1736715048706,-762.88,0.00010545,2]
[348684686,1736715048715,-1287.27,0.00010545,2]
[348684687,1736715048724,-664.15,0.00010545,2]
[348684688,1736715048734,-3108.37,0.00010545,2]
[348684689,1736715048744,-749.7,0.00010545,2]
[348684690,1736715048754,-1349.45,0.00010545,2]
[348684691,1736715048764,-1000.0,0.00010545,2]
[348684692,1736715048773,-647.53,0.00010545,2]
[348684693,1736715048783,-1961.82,0.00010545,2]
[348684694,1736715048792,-993.36,0.00010545,2]
[348684695,1736715048802,-500.0,0.00010546,2]
[348684696,1736715048811,-571.61,0.00010546,2]
[348684697,1736715048820,-531.54,0.00010546,2]
[348684698,1736715048830,-1291.45,0.00010546,2]
[348684699,1736715048839,-3163.06,0.00010546,2]
[348684700,1736715048848,-3072.55,0.00010546,2]
[348684701,1736715048857,-439.09633194,0.00010546,2]
[348684702,1736715048867,-1312.57,0.00010546,2]
[348684703,1736715048876,-2350.2,0.00010546,2]
[348684704,1736715048885,-502.31,0.00010547,2]
[348684705,1736715048894,-174.39941701,0.00010547,2]
[348684706,1736715048904,-320.00676941,0.00010547,2]